fUSD/lending_fUSD_20260622
["ID","MTS","AMOUNT","RATE_DAILY","PERIOD"]
[425986342,1782073835000,-151.0,0.00010539,2]
[425986339,1782073835000,-150.0,0.00010524,2]
[425986335,1782073835000,-151.0,0.00010517,2]
[425986343,1782073835000,-150.0,0.00010593,2]
[425986344,1782073835000,-150.0,0.00010622,2]
[425986336,1782073835000,-150.0,0.00010517,2]
[425986351,1782073835000,-26.74773586,0.00010921,2]
[425986345,1782073835000,-150.0,0.00010709,2]
[425986346,1782073835000,-324.27,0.00010803,2]
[425986349,1782073835000,-151.0,0.00010921,2]
[425986347,1782073835000,-150.0,0.00010811,2]
[425986350,1782073835000,-124.25226414,0.00010921,2]
[425986337,1782073835000,-150.0,0.00010517,2]
[425986348,1782073835000,-152.0,0.00010811,2]
[425986391,1782073836000,-500.0,0.00014999,2]
[425986387,1782073836000,-179.89003474,0.000148,2]
[425986383,1782073836000,-500.0,0.00014514,2]
[425986388,1782073836000,-312.0,0.00014875,2]
[425986386,1782073836000,-500.0,0.00014778,2]
[425986384,1782073836000,-500.0,0.00014514,2]
[425986381,1782073836000,-500.0,0.00014514,2]
[425986380,1782073836000,-500.0,0.00014514,2]
[425986401,1782073836000,-595.35,0.00015403,2]
[425986382,1782073836000,-500.0,0.00014514,2]
[425986385,1782073836000,-151.33,0.00014639,2]
[425986392,1782073836000,-392.2092691,0.00014999,2]
[425986390,1782073836000,-500.0,0.00014999,2]
[425986398,1782073836000,-1500.0,0.00015346,2]
[425986402,1782073836000,-2457.13,0.000155,2]
[425986396,1782073836000,-1852.42,0.00015102,2]
[425986393,1782073836000,-500.0,0.00014999,2]
[425986395,1782073836000,-504.74582861,0.00015052,2]
[425986399,1782073836000,-199.5,0.0001538,2]
[425986397,1782073836000,-272.38839759,0.00015122,2]
[425986394,1782073836000,-500.0,0.00014999,2]
[425986404,1782073836000,-1555.5,0.00015894,2]
[425986403,1782073836000,-175.22,0.00015675,2]
[425986407,1782073836000,-164.59889639,0.00016072,2]
[425986389,1782073836000,-500.0,0.00014999,2]
[425986400,1782073836000,-7068.25,0.00015402,2]
[425986378,1782073836000,-299.99,0.00014504,2]
[425986355,1782073836000,-250.0,0.00011333,2]
[425986377,1782073836000,-822.25,0.00014504,2]
[425986411,1782073836000,-150.0,0.00016172,2]
[425986352,1782073836000,-150.0,0.00010921,2]
[425986353,1782073836000,-216.32317309,0.00010943,2]
[425986354,1782073836000,-324.27,0.00011066,2]
[425986356,1782073836000,-255.0,0.00011482,2]
[425986360,1782073836000,-250.0,0.00011504,2]
[425986364,1782073836000,-724.74769916,0.00012277,2]
[425986359,1782073836000,-83.74586119,0.00011504,2]
[425986363,1782073836000,-682.86382287,0.00012162,2]
[425986358,1782073836000,-416.25413881,0.00011504,2]
[425986361,1782073836000,-281.42542618,0.00011566,7]
[425986357,1782073836000,-319.7850931,0.00011504,2]
[425986365,1782073836000,-345.0,0.00012611,2]
[425986362,1782073836000,-8076.9698,0.00012062,2]
[425986371,1782073836000,-150.0,0.00014324,2]
[425986374,1782073836000,-163.77,0.00014424,2]
[425986367,1782073836000,-250.0,0.00014,2]
[425986370,1782073836000,-609.242,0.0001424,2]
[425986372,1782073836000,-150.0,0.00014324,2]
[425986368,1782073836000,-848.806657,0.00014,2]
[425986366,1782073836000,-478.04785953,0.00013699,2]
[425986376,1782073836000,-7941.26,0.00014504,2]
[425986373,1782073836000,-151.0,0.00014424,2]
[425986375,1782073836000,-500.0,0.00014504,2]
[425986369,1782073836000,-279.8509739,0.00014164,2]
[425986379,1782073836000,-500.0,0.00014514,2]
[425986406,1782073836000,-300.0,0.00016,2]
[425986445,1782073836000,-28814.3396,0.00018696,2]
[425986405,1782073836000,-341.62,0.00015953,2]
[425986444,1782073836000,-178.0936,0.00018596,2]
[425986439,1782073836000,-166.66,0.00017689,2]
[425986443,1782073836000,-161.41,0.0001804,2]
[425986459,1782073836000,-151.0,0.0001973,2]
[425986441,1782073836000,-350.0,0.00018,2]
[425986442,1782073836000,-166.66,0.00018033,2]
[425986448,1782073836000,-151.0,0.0001973,2]
[425986457,1782073836000,-578.20924308,0.0001973,2]
[425986447,1782073836000,-537.68450001,0.0001973,2]
[425986449,1782073836000,-151.0,0.0001973,2]
[425986458,1782073836000,-9211.34798985,0.0001973,2]
[425986446,1782073836000,-175.22,0.00019593,2]
[425986451,1782073836000,-158.40510523,0.0001973,2]
[425986452,1782073836000,-155.48525485,0.0001973,2]
[425986450,1782073836000,-165.08045469,0.0001973,2]
[425986454,1782073836000,-201.93286099,0.0001973,2]
[425986453,1782073836000,-157.03199324,0.0001973,2]
[425986456,1782073836000,-151.0,0.0001973,2]
[425986455,1782073836000,-174.61919141,0.0001973,2]
[425986460,1782073836000,-500.0,0.0001973,2]
[425986461,1782073836000,-151.0,0.0001973,2]
[425986464,1782073836000,-201.93286098,0.0001973,2]
[425986463,1782073836000,-151.0,0.0001973,2]
[425986465,1782073836000,-151.0,0.0001973,2]
[425986462,1782073836000,-201.93286099,0.0001973,2]
[425986440,1782073836000,-500.0,0.00017802,2]
[425986438,1782073836000,-161.41,0.0001763,2]
[425986409,1782073836000,-8315.15,0.00016116,2]
[425986437,1782073836000,-166.66,0.00017346,2]
[425986410,1782073836000,-4788.64,0.00016172,2]
[425986408,1782073836000,-200.0,0.00016106,2]
[425986413,1782073836000,-536.95,0.00016273,2]
[425986412,1782073836000,-155.65,0.00016172,2]
[425986417,1782073836000,-161.41,0.000164,2]
[425986414,1782073836000,-150.0,0.00016283,2]
[425986416,1782073836000,-185.05,0.000164,2]
[425986435,1782073836000,-166.66,0.00017002,2]
[425986415,1782073836000,-166.66,0.00016315,2]
[425986420,1782073836000,-500.0,0.00016438,2]
[425986419,1782073836000,-500.0,0.00016438,2]
[425986423,1782073836000,-500.0,0.00016438,2]
[425986421,1782073836000,-500.0,0.00016438,2]
[425986418,1782073836000,-599.78666617,0.00016438,2]
[425986424,1782073836000,-563.40873009,0.00016438,2]
[425986422,1782073836000,-500.0,0.00016438,2]
[425986436,1782073836000,-161.41,0.0001722,2]
[425986429,1782073836000,-187.84,0.00016474,2]
[425986428,1782073836000,-1613.05350002,0.00016442,2]
[425986432,1782073836000,-161.41,0.0001681,2]
[425986433,1782073836000,-151.0,0.00016848,2]
[425986434,1782073836000,-256.70248179,0.00016848,2]
[425986430,1782073836000,-231.25,0.00016549,2]
[425986427,1782073836000,-500.0,0.00016438,2]
[425986425,1782073836000,-500.0,0.00016438,2]
[425986426,1782073836000,-500.0,0.00016438,2]
[425986431,1782073836000,-166.66,0.00016659,2]
[425986503,1782073837000,-154.95,0.0002057,3]
[425986504,1782073837000,-150.0,0.0002058,2]
[425986505,1782073837000,-150.0,0.0002058,2]
[425986502,1782073837000,-151.0,0.00020381,2]
[425986501,1782073837000,-2000.0,0.00020337,2]
[425986494,1782073837000,-9461.84,0.0002,2]
[425986498,1782073837000,-209.40437684,0.00020278,2]
[425986499,1782073837000,-338.64709291,0.00020278,2]
[425986495,1782073837000,-158.40510523,0.00020278,2]
[425986493,1782073837000,-154.0,0.0002,2]
[425986500,1782073837000,-817.03,0.00020327,3]
[425986508,1782073837000,-187.42159584,0.0002058,2]
[425986519,1782073837000,-479.0,0.00021,2]
[425986507,1782073837000,-150.0,0.0002058,2]
[425986510,1782073837000,-3566.944,0.00020795,2]
[425986520,1782073837000,-152.0,0.00021,2]
[425986509,1782073837000,-150.0,0.000207,7]
[425986511,1782073837000,-169.97,0.00020814,2]
[425986521,1782073837000,-307.0,0.00021,2]
[425986512,1782073837000,-158.40510523,0.00020826,2]
[425986517,1782073837000,-151.0,0.00021,2]
[425986518,1782073837000,-242.0,0.00021,2]
[425986515,1782073837000,-217.15233878,0.00020826,2]
[425986513,1782073837000,-157.03199324,0.00020826,2]
[425986496,1782073837000,-157.03199324,0.00020278,2]
[425986506,1782073837000,-150.0,0.0002058,2]
[425986492,1782073837000,-307.0,0.0002,2]
[425986478,1782073837000,-151.0,0.0001973,2]
[425986486,1782073837000,-9554.904243,0.00019855,2]
[425986514,1782073837000,-187.78006524,0.00020826,2]
[425986471,1782073837000,-201.93286099,0.0001973,2]
[425986470,1782073837000,-338.64709291,0.0001973,2]
[425986468,1782073837000,-695.39793187,0.0001973,2]
[425986466,1782073837000,-151.0,0.0001973,2]
[425986469,1782073837000,-500.0,0.0001973,2]
[425986467,1782073837000,-151.0,0.0001973,2]
[425986472,1782073837000,-151.0,0.0001973,2]
[425986477,1782073837000,-151.0,0.0001973,2]
[425986474,1782073837000,-151.0,0.0001973,2]
[425986476,1782073837000,-151.0,0.0001973,2]
[425986475,1782073837000,-151.0,0.0001973,2]
[425986480,1782073837000,-151.0,0.0001973,2]
[425986479,1782073837000,-151.0,0.0001973,2]
[425986485,1782073837000,-2081.6451524,0.00019855,2]
[425986483,1782073837000,-151.0,0.0001973,2]
[425986484,1782073837000,-151.0,0.0001973,2]
[425986481,1782073837000,-151.0,0.0001973,2]
[425986473,1782073837000,-152.0,0.0001973,2]
[425986482,1782073837000,-151.0,0.0001973,2]
[425986490,1782073837000,-400.0,0.0002,2]
[425986489,1782073837000,-479.0,0.0002,2]
[425986487,1782073837000,-151.0,0.0002,2]
[425986488,1782073837000,-242.0,0.0002,2]
[425986497,1782073837000,-181.08010149,0.00020278,2]
[425986491,1782073837000,-152.0,0.0002,2]
[425986516,1782073837000,-338.64709291,0.00020826,2]
[425986531,1782073837000,-338.64709291,0.00021374,2]
[425986528,1782073837000,-157.03199325,0.00021374,2]
[425986552,1782073837000,-307.0,0.00022,2]
[425986553,1782073837000,-154.0,0.00022,2]
[425986557,1782073837000,-151.0,0.00022353,2]
[425986563,1782073837000,-197.92444733,0.000224,2]
[425986556,1782073837000,-786.2106661,0.00022157,2]
[425986558,1782073837000,-1846.67830162,0.000224,2]
[425986566,1782073837000,-316.0,0.000224,2]
[425986565,1782073837000,-169.79782118,0.000224,2]
[425986564,1782073837000,-493.318888,0.000224,2]
[425986562,1782073837000,-262.56742114,0.000224,2]
[425986561,1782073837000,-161.10590987,0.000224,2]
[425986560,1782073837000,-197.92444733,0.000224,2]
[425986559,1782073837000,-176.44357558,0.000224,2]
[425986523,1782073837000,-1276.0,0.00021031,2]
[425986570,1782073837000,-12.33614696,0.00022407,2]
[425986569,1782073837000,-487.66385304,0.00022407,2]
[425986571,1782073837000,-300.0,0.00022407,2]
[425986568,1782073837000,-1016.792267,0.00022407,2]
[425986577,1782073837000,-1192.11997308,0.00022407,2]
[425986579,1782073837000,-599.60298507,0.00022469,2]
[425986580,1782073837000,-721.12765534,0.00022469,2]
[425986578,1782073837000,-2500.0,0.00022418,2]
[425986582,1782073837000,-158.40510523,0.0002247,2]
[425986581,1782073837000,-2000.0,0.0002247,2]
[425986583,1782073837000,-7.17642753,0.0002247,2]
[425986555,1782073837000,-200.0,0.00022039,2]
[425986550,1782073837000,-479.0,0.00022,2]
[425986567,1782073837000,-1504.45612005,0.00022407,2]
[425986546,1782073837000,-338.64709291,0.00021922,2]
[425986525,1782073837000,-1360.0,0.00021031,2]
[425986524,1782073837000,-383.0,0.00021031,2]
[425986522,1782073837000,-154.0,0.00021,2]
[425986532,1782073837000,-4397.09,0.00021604,2]
[425986533,1782073837000,-2457.13,0.000217,2]
[425986527,1782073837000,-158.40510523,0.00021374,2]
[425986529,1782073837000,-194.72792766,0.00021374,2]
[425986530,1782073837000,-206.77458231,0.00021374,2]
[425986526,1782073837000,-1229.0,0.00021031,2]
[425986535,1782073837000,-5914.03250629,0.00021818,2]
[425986551,1782073837000,-152.0,0.00022,2]
[425986539,1782073837000,-166.0,0.00021918,2]
[425986538,1782073837000,-166.0,0.00021918,2]
[425986534,1782073837000,-1906.68942229,0.00021818,2]
[425986547,1782073837000,-309.9,0.0002194,3]
[425986554,1782073837000,-3575.77,0.00022,2]
[425986549,1782073837000,-242.0,0.00022,2]
[425986537,1782073837000,-5000.0,0.00021918,2]
[425986545,1782073837000,-201.93286098,0.00021922,2]
[425986548,1782073837000,-160.0,0.00022,2]
[425986543,1782073837000,-200.0,0.00021918,2]
[425986541,1782073837000,-200.0,0.00021918,2]
[425986540,1782073837000,-645.0,0.00021918,2]
[425986536,1782073837000,-159.11633035,0.000219,2]
[425986542,1782073837000,-200.0,0.00021918,2]
[425986544,1782073837000,-158.40510523,0.00021922,2]
[425986584,1782073838000,-202.22794931,0.0002247,2]
[425986585,1782073838000,-296.95282439,0.0002247,2]
[425986593,1782073840000,-3137.59697326,0.00020795,2]
[425986595,1782073840000,-509.40302674,0.00020795,2]
[425986594,1782073840000,-212.191664,0.00014,2]
[425986597,1782073840000,-191.85318776,0.00022518,2]
[425986596,1782073840000,-41.69426852,0.0002247,2]
[425986599,1782073840000,-310.0,0.00022518,2]
[425986598,1782073840000,-1534.57491929,0.00022518,2]
[425986641,1782073846000,-242.0,0.00023,2]
[425986638,1782073846000,-197.92444733,0.000228,2]
[425986639,1782073846000,-493.318888,0.000228,2]
[425986636,1782073846000,-262.56742114,0.000228,2]
[425986637,1782073846000,-33314.5604,0.000228,2]
[425986632,1782073846000,-500.0,0.00022799,2]
[425986633,1782073846000,-989.0,0.000228,5]
[425986635,1782073846000,-161.10590987,0.000228,2]
[425986634,1782073846000,-197.92444733,0.000228,2]
[425986630,1782073846000,-270.93302858,0.00022778,7]
[425986631,1782073846000,-500.0,0.00022799,2]
[425986627,1782073846000,-166.0,0.00022664,2]
[425986629,1782073846000,-181.11220601,0.00022778,7]
[425986626,1782073846000,-493.318888,0.000226,2]
[425986624,1782073846000,-262.56742114,0.000226,2]
[425986623,1782073846000,-161.10590987,0.000226,2]
[425986625,1782073846000,-197.92444733,0.000226,2]
[425986622,1782073846000,-197.92444733,0.000226,2]
[425986621,1782073846000,-2023.1218772,0.000226,2]
[425986619,1782073846000,-1040.53240001,0.00010358,2]
[425986620,1782073846000,-5784.2938215,0.00022518,2]
[425986618,1782073846000,-259.96499999,0.00010358,2]
[425986642,1782073846000,-479.0,0.00023,2]
[425986628,1782073846000,-660.4813,0.000227,2]
[425986640,1782073846000,-2023.1218772,0.000229,2]
[425986650,1782073846000,-493.318888,0.000231,2]
[425986647,1782073846000,-338.64709291,0.00023018,2]
[425986646,1782073846000,-217.15233878,0.00023018,2]
[425986667,1782073846000,-9554.904243,0.00023731,2]
[425986664,1782073846000,-338.64709291,0.00023566,2]
[425986663,1782073846000,-225.18697532,0.00023566,2]
[425986672,1782073846000,-164.72180807,0.00023771,2]
[425986665,1782073846000,-200.0,0.00023589,2]
[425986662,1782073846000,-158.40510523,0.00023566,2]
[425986661,1782073846000,-175.22,0.00023512,2]
[425986660,1782073846000,-2023.1218772,0.000235,2]
[425986659,1782073846000,-171.744,0.000234,3]
[425986657,1782073846000,-493.318888,0.000233,2]
[425986656,1782073846000,-262.56742114,0.000233,2]
[425986658,1782073846000,-1924.75,0.000234,3]
[425986655,1782073846000,-2023.1218772,0.000233,2]
[425986654,1782073846000,-366.5772,0.00023278,7]
[425986652,1782073846000,-341.37,0.000232,14]
[425986651,1782073846000,-599.78666617,0.0002315,2]
[425986649,1782073846000,-262.56742114,0.000231,2]
[425986670,1782073846000,-15.67981693,0.00023771,2]
[425986648,1782073846000,-2023.1218772,0.000231,2]
[425986644,1782073846000,-307.0,0.00023,2]
[425986643,1782073846000,-152.0,0.00023,2]
[425986645,1782073846000,-158.40510523,0.00023018,2]
[425986653,1782073846000,-7820.72192855,0.00023218,2]
[425986675,1782073847000,-3647.0,0.00023795,2]
[425986673,1782073847000,-170.0,0.00023783,2]
[425986674,1782073847000,-3560.0,0.00023795,2]
[425986678,1782073847000,-3305.67883884,0.00023918,2]
[425986676,1782073847000,-2023.1218772,0.000238,2]
[425986677,1782073847000,-2081.6451524,0.00023823,2]
[425986679,1782073847000,-302.81401587,0.00023918,2]
[425986680,1782073847000,-951.41196313,0.00023918,2]
[425986681,1782073887000,-314.84,0.00010263,2]
[425986682,1782073916000,150.0,0.00030136,120]
[425986683,1782073940000,-500.0,0.00010203,2]
[425986685,1782074003000,157.36,0.00028031,120]
[425986684,1782074003000,157.36,0.00024917,120]
[425986686,1782074118000,-500.0,0.00010187,2]
[425986687,1782074171000,-282.5974785,0.00010187,2]
[425986688,1782074173000,153.0,0.0003,120]
[425986689,1782074225000,-500.0,0.00010186,2]
[425986690,1782074278000,-500.0,0.00010186,2]
[425986691,1782074289000,4013.18810265,0.00010086,2]
[425986692,1782074290000,150.45306755,0.00010088,2]
[425986693,1782074331000,-597.51428666,0.00010187,2]
[425986694,1782074385000,-160.0,0.00010189,2]
[425986695,1782074438000,-314.84,0.00010289,2]
[425986696,1782074492000,-314.84,0.00010336,2]
[425986697,1782074545000,-314.84,0.00010398,2]
[425986698,1782074599000,-314.84,0.00010471,2]
[425986699,1782074779000,-314.84,0.00010553,2]
[425986700,1782074833000,-151.0,0.00010553,2]
[425986702,1782074886000,-150.0,0.00010553,2]
[425986703,1782074940000,-150.45306755,0.00010545,2]
[425986704,1782074993000,-152.0,0.00010553,2]
[425986705,1782074996000,-153.0,0.00010553,2]
[425986707,1782074996000,-150.0,0.00010553,2]
[425986706,1782074996000,-152.0,0.00010553,2]
[425986708,1782074996000,-151.0,0.00010553,2]
[425986710,1782074996000,-151.0,0.00010553,2]
[425986709,1782074996000,-150.0,0.00010553,2]
[425986713,1782074997000,-151.0,0.00010553,2]
[425986721,1782074997000,-314.84,0.00010744,2]
[425986720,1782074997000,-314.84,0.00010645,2]
[425986719,1782074997000,-151.0,0.00010553,2]
[425986718,1782074997000,-151.0,0.00010553,2]
[425986717,1782074997000,-150.0,0.00010553,2]
[425986716,1782074997000,-150.0,0.00010553,2]
[425986715,1782074997000,-151.0,0.00010553,2]
[425986714,1782074997000,-151.0,0.00010553,2]
[425986712,1782074997000,-150.0,0.00010553,2]
[425986711,1782074997000,-151.0,0.00010553,2]
[425986723,1782074998000,147.08876192,0.00010026,2]
[425986722,1782074998000,161.60123808,0.00010026,2]
[425986725,1782074998000,186.193351,0.00010399,2]
[425986726,1782074998000,63.46834753,0.00010399,2]
[425986724,1782074998000,59.02830147,0.00010399,2]
[425986777,1782075032000,-500.0,0.00016438,2]
[425986776,1782075032000,-500.0,0.00016438,2]
[425986797,1782075032000,-500.0,0.00016438,2]
[425986775,1782075032000,-500.0,0.00016438,2]
[425986769,1782075032000,-500.0,0.00016438,2]
[425986767,1782075032000,-171.9,0.00016438,2]
[425986774,1782075032000,-500.0,0.00016438,2]
[425986771,1782075032000,-500.0,0.00016438,2]
[425986786,1782075032000,-405.86724849,0.00016438,2]
[425986772,1782075032000,-500.0,0.00016438,2]
[425986779,1782075032000,-500.0,0.00016438,2]
[425986778,1782075032000,-500.0,0.00016438,2]
[425986790,1782075032000,-89.33483696,0.00016438,2]
[425986795,1782075032000,-410.66516304,0.00016438,2]
[425986780,1782075032000,-500.0,0.00016438,2]
[425986782,1782075032000,-94.13275151,0.00016438,2]
[425986766,1782075032000,-163.63852368,0.00016408,2]
[425986788,1782075032000,-500.0,0.00016438,2]
[425986773,1782075032000,-500.0,0.00016438,2]
[425986763,1782075032000,-12445.85439904,0.00016338,2]
[425986754,1782075032000,-154.26333622,0.00013457,2]
[425986764,1782075032000,-18561.28895844,0.00016338,2]
[425986752,1782075032000,-314.84,0.00011343,2]
[425986749,1782075032000,-308.69,0.00011081,2]
[425986750,1782075032000,-314.84,0.00011085,2]
[425986753,1782075032000,-154.96600771,0.00013457,2]
[425986751,1782075032000,-314.84,0.00011211,2]
[425986745,1782075032000,-150.0,0.00010676,2]
[425986746,1782075032000,-25045.80788059,0.000108,2]
[425986747,1782075032000,-314.84,0.00010851,2]
[425986759,1782075032000,-1500.0,0.00015941,2]
[425986744,1782075032000,-150.0,0.00010553,2]
[425986755,1782075032000,-173.24479151,0.00013531,2]
[425986761,1782075032000,-3695.37,0.00016116,2]
[425986757,1782075032000,-250.0,0.00014,2]
[425986765,1782075032000,-40792.63394252,0.00016338,2]
[425986756,1782075032000,-250.0,0.00013784,2]
[425986760,1782075032000,-300.0,0.00016,2]
[425986762,1782075032000,-1000.0,0.00016337,2]
[425986758,1782075032000,-667.25899567,0.00014422,2]
[425986748,1782075032000,-314.84,0.00010964,2]
[425986799,1782075032000,-500.0,0.00016438,2]
[425986827,1782075032000,-500.0,0.00016438,2]
[425986808,1782075032000,-500.0,0.00016438,2]
[425986830,1782075032000,-500.0,0.00016438,2]
[425986829,1782075032000,-500.0,0.00016438,2]
[425986828,1782075032000,-500.0,0.00016438,2]
[425986835,1782075032000,-500.0,0.00016438,2]
[425986833,1782075032000,-500.0,0.00016438,2]
[425986831,1782075032000,-500.0,0.00016438,2]
[425986825,1782075032000,-500.0,0.00016438,2]
[425986832,1782075032000,-500.0,0.00016438,2]
[425986826,1782075032000,-500.0,0.00016438,2]
[425986834,1782075032000,-500.0,0.00016438,2]
[425986801,1782075032000,-500.0,0.00016438,2]
[425986839,1782075032000,-500.0,0.00016438,2]
[425986837,1782075032000,-500.0,0.00016438,2]
[425986841,1782075032000,-500.0,0.00016438,2]
[425986838,1782075032000,-500.0,0.00016438,2]
[425986836,1782075032000,-500.0,0.00016438,2]
[425986843,1782075032000,-500.0,0.00016438,2]
[425986844,1782075032000,-500.0,0.00016438,2]
[425986842,1782075032000,-500.0,0.00016438,2]
[425986824,1782075032000,-500.0,0.00016438,2]
[425986840,1782075032000,-500.0,0.00016438,2]
[425986819,1782075032000,-500.0,0.00016438,2]
[425986805,1782075032000,-500.0,0.00016438,2]
[425986809,1782075032000,-500.0,0.00016438,2]
[425986803,1782075032000,-490.09516304,0.00016438,2]
[425986802,1782075032000,-9.90483696,0.00016438,2]
[425986810,1782075032000,-500.0,0.00016438,2]
[425986804,1782075032000,-500.0,0.00016438,2]
[425986807,1782075032000,-500.0,0.00016438,2]
[425986806,1782075032000,-500.0,0.00016438,2]
[425986814,1782075032000,-500.0,0.00016438,2]
[425986815,1782075032000,-277.01944388,0.00016438,2]
[425986813,1782075032000,-500.0,0.00016438,2]
[425986822,1782075032000,-500.0,0.00016438,2]
[425986816,1782075032000,-500.0,0.00016438,2]
[425986817,1782075032000,-500.0,0.00016438,2]
[425986821,1782075032000,-500.0,0.00016438,2]
[425986812,1782075032000,-500.0,0.00016438,2]
[425986823,1782075032000,-500.0,0.00016438,2]
[425986818,1782075032000,-500.0,0.00016438,2]
[425986811,1782075032000,-500.0,0.00016438,2]
[425986820,1782075032000,-500.0,0.00016438,2]
[425986847,1782075033000,-500.0,0.00016438,2]
[425986845,1782075033000,-500.0,0.00016438,2]
[425986846,1782075033000,-500.0,0.00016438,2]
[425986848,1782075033000,-500.0,0.00016438,2]
[425986851,1782075033000,-35.94841221,0.00016438,2]
[425986850,1782075033000,-500.0,0.00016438,2]
[425986852,1782075033000,150.0,0.00010584,2]
[425986849,1782075033000,-527.70194439,0.00016438,2]
[425986871,1782075041000,-980.79069926,0.00015916,2]
[425986870,1782075041000,-1739.66312345,0.00015916,2]
[425986868,1782075041000,-336.43687952,0.00015916,2]
[425986869,1782075041000,-632.63160208,0.00015916,2]
[425986867,1782075041000,-1687.50273221,0.00015916,2]
[425986866,1782075041000,-672.09350008,0.00015916,2]
[425986862,1782075041000,-1772.66,0.00015916,2]
[425986904,1782075043000,-625.71578349,0.00016438,2]
[425986900,1782075043000,-625.71578349,0.00016438,2]
[425986901,1782075043000,-625.71578349,0.00016438,2]
[425986896,1782075043000,-500.0,0.00016438,2]
[425986897,1782075043000,-500.0,0.00016438,2]
[425986893,1782075043000,-464.05158779,0.00016438,2]
[425986895,1782075043000,-500.0,0.00016438,2]
[425986894,1782075043000,-500.0,0.00016438,2]
[425986892,1782075043000,-3985.7729634,0.00015916,2]
[425986902,1782075043000,-625.71578349,0.00016438,2]
[425986898,1782075043000,-500.0,0.00016438,2]
[425986905,1782075043000,-625.71578349,0.00016438,2]
[425986899,1782075043000,-500.0,0.00016438,2]
[425986906,1782075043000,-625.71578349,0.00016438,2]
[425986907,1782075043000,-625.71578349,0.00016438,2]
[425986917,1782075043000,-5441.77751525,0.00016521,2]
[425986912,1782075043000,-625.71578349,0.00016438,2]
[425986915,1782075043000,-500.0,0.00016438,2]
[425986913,1782075043000,-625.71578349,0.00016438,2]
[425986911,1782075043000,-625.71578349,0.00016438,2]
[425986910,1782075043000,-625.71578349,0.00016438,2]
[425986908,1782075043000,-625.71578349,0.00016438,2]
[425986914,1782075043000,-625.71578349,0.00016438,2]
[425986909,1782075043000,-625.71578349,0.00016438,2]
[425986916,1782075043000,-1555.5,0.00016489,2]
[425986903,1782075043000,-625.71578349,0.00016438,2]
[425986921,1782075044000,-615.74666559,0.00016621,2]
[425986922,1782075044000,-246.83184119,0.00017037,2]
[425986923,1782075044000,-328.41995491,0.00017037,2]
[425986920,1782075044000,-2684.23387606,0.00016521,2]
[425986939,1782075046000,-185.05,0.00018166,2]
[425986944,1782075046000,-166.66,0.00018371,2]
[425986946,1782075046000,-1058.55,0.00018503,2]
[425986941,1782075046000,-171.24,0.00018182,2]
[425986947,1782075046000,-169.86,0.00018505,2]
[425986940,1782075046000,-462.44,0.0001818,2]
[425986948,1782075046000,-323.99973508,0.00018681,2]
[425986938,1782075046000,-1734.62772924,0.00018133,2]
[425986929,1782075046000,-1037.8017039,0.00017037,2]
[425986935,1782075046000,-350.0,0.00018,2]
[425986937,1782075046000,-200.0,0.00018081,2]
[425986933,1782075046000,-6901.08641179,0.0001781,2]
[425986934,1782075046000,-166.66,0.00018,2]
[425986932,1782075046000,-1224.92497947,0.0001781,2]
[425986931,1782075046000,-166.66,0.00017629,2]